[Event "Titled Tuesday Blitz January 17 Early 2023"]
[White "Rakhmanov, Aleksandr"]
[Black "Jimenez, Joaquin"]
[WhiteFideId "4173708"]
[BlackFideId "109860"]
[WhiteElo "2632"]
[BlackElo "2195"]
[Result "1-0"]
[Round "01"]
[TimeControl "180+2"]
[Date "2023.01.17"]
[WhiteClock "0:00:30"]
[BlackClock "0:00:11"]

1. d4 {[%clk 0:02:53]}  Nf6 {[%clk 0:02:59]} 2. c4 {[%clk 0:02:49]}  g6 {[%clk 0:02:57]} 3. Nc3 {[%clk 0:02:45]}  Bg7 {[%clk 0:02:56]} 4. e4 {[%clk 0:02:45]}  d6 {[%clk 0:02:56]} 5. h3 {[%clk 0:02:45]}  O-O {[%clk 0:02:52]} 6. Be3 {[%clk 0:02:43]}  e5 {[%clk 0:02:48]} 7. d5 {[%clk 0:02:42]}  Nh5 {[%clk 0:02:41]} 8. g3 {[%clk 0:02:38]}  a5 {[%clk 0:02:20]} 9. Be2 {[%clk 0:02:34]}  Nf6 {[%clk 0:02:01]} 10. g4 {[%clk 0:02:32]}  Ne8 {[%clk 0:01:58]} 11. Bd3 {[%clk 0:02:29]}  Na6 {[%clk 0:01:56]} 12. Nge2 {[%clk 0:02:25]}  Nc5 {[%clk 0:01:54]} 13. Ng3 {[%clk 0:02:16]}  Bd7 {[%clk 0:01:39]} 14. Be2 {[%clk 0:01:52]}  f5 {[%clk 0:01:29]} 15. gxf5 {[%clk 0:01:50]}  gxf5 {[%clk 0:01:30]} 16. exf5 {[%clk 0:01:41]}  Bxf5 {[%clk 0:01:29]} 17. Nxf5 {[%clk 0:01:30]}  Rxf5 {[%clk 0:01:30]} 18. Rg1 {[%clk 0:01:29]}  Kh8 {[%clk 0:01:27]} 19. Qc2 {[%clk 0:01:25]}  Rf8 {[%clk 0:01:12]} 20. O-O-O {[%clk 0:01:24]}  a4 {[%clk 0:01:04]} 21. Rg4 {[%clk 0:01:09]}  Nf6 {[%clk 0:00:54]} 22. Rh4 {[%clk 0:01:03]}  Nb3+ {[%clk 0:00:25]} 23. axb3 {[%clk 0:00:54]}  axb3 {[%clk 0:00:25]} 24. Qb1 {[%clk 0:00:47]}  Qd7 {[%clk 0:00:18]} 25. Rg1 {[%clk 0:00:44]}  e4 {[%clk 0:00:17]} 26. Nxe4 {[%clk 0:00:40]}  Nxe4 {[%clk 0:00:17]} 27. Qxe4 {[%clk 0:00:41]}  Ra1+ {[%clk 0:00:14]} 28. Kd2 {[%clk 0:00:40]}  Bc3+ {[%clk 0:00:12]} 29. Kxc3 {[%clk 0:00:39]}  Rxg1 {[%clk 0:00:13]} 30. Bd4+ {[%clk 0:00:31]}  Rg7 {[%clk 0:00:11]} 31. Qxh7# {[%clk 0:00:30]} 1-0


[Site "https://www.chess.com"]

[Event "Titled Tuesday Blitz January 17 Early 2023"]
[White "Estrada Nieto, Julian"]
[Black "Lagno, Kateryna"]
[WhiteFideId "5101018"]
[BlackFideId "14109336"]
[WhiteElo "2215"]
[BlackElo "2558"]
[Result "0-1"]
[Round "01"]
[TimeControl "180+2"]
[Date "2023.01.17"]
[WhiteClock "0:00:04"]
[BlackClock "0:00:27"]

1. e4 {[%clk 0:02:59]}  e5 {[%clk 0:02:59]} 2. Nf3 {[%clk 0:02:59]}  Nc6 {[%clk 0:03:00]} 3. Bb5 {[%clk 0:02:59]}  a6 {[%clk 0:03:01]} 4. Ba4 {[%clk 0:02:59]}  d6 {[%clk 0:03:01]} 5. Bxc6+ {[%clk 0:02:57]}  bxc6 {[%clk 0:03:01]} 6. d4 {[%clk 0:02:58]}  exd4 {[%clk 0:03:01]} 7. Qxd4 {[%clk 0:02:55]}  Nf6 {[%clk 0:03:01]} 8. Nc3 {[%clk 0:02:54]}  Be7 {[%clk 0:03:00]} 9. Bg5 {[%clk 0:02:53]}  O-O {[%clk 0:02:57]} 10. e5 {[%clk 0:02:34]}  Nd7 {[%clk 0:02:54]} 11. Bf4 {[%clk 0:02:12]}  dxe5 {[%clk 0:02:50]} 12. Nxe5 {[%clk 0:02:11]}  Bf6 {[%clk 0:02:48]} 13. O-O-O {[%clk 0:02:05]}  Nxe5 {[%clk 0:02:08]} 14. Bxe5 {[%clk 0:01:50]}  Qxd4 {[%clk 0:02:04]} 15. Bxd4 {[%clk 0:01:50]}  Bg5+ {[%clk 0:02:04]} 16. Kb1 {[%clk 0:01:49]}  Bf5 {[%clk 0:02:04]} 17. Be5 {[%clk 0:01:41]}  Rac8 {[%clk 0:02:03]} 18. f3 {[%clk 0:01:37]}  Rfe8 {[%clk 0:02:02]} 19. Rhe1 {[%clk 0:01:36]}  h5 {[%clk 0:01:57]} 20. h3 {[%clk 0:01:32]}  Bh4 {[%clk 0:01:52]} 21. Re3 {[%clk 0:01:18]}  f6 {[%clk 0:01:48]} 22. Bf4 {[%clk 0:01:18]}  Rxe3 {[%clk 0:01:48]} 23. Bxe3 {[%clk 0:01:18]}  Bg3 {[%clk 0:01:44]} 24. a4 {[%clk 0:01:10]}  Re8 {[%clk 0:01:42]} 25. Bg1 {[%clk 0:01:04]}  Kf7 {[%clk 0:01:41]} 26. b3 {[%clk 0:00:56]}  g5 {[%clk 0:01:31]} 27. a5 {[%clk 0:00:56]}  g4 {[%clk 0:01:26]} 28. hxg4 {[%clk 0:00:55]}  hxg4 {[%clk 0:01:27]} 29. fxg4 {[%clk 0:00:50]}  Bxg4 {[%clk 0:01:28]} 30. Rf1 {[%clk 0:00:49]}  Kg6 {[%clk 0:01:26]} 31. Bd4 {[%clk 0:00:43]}  f5 {[%clk 0:01:25]} 32. Na4 {[%clk 0:00:42]}  Rd8 {[%clk 0:01:12]} 33. Bf2 {[%clk 0:00:36]}  Be5 {[%clk 0:01:02]} 34. Be3 {[%clk 0:00:30]}  Be2 {[%clk 0:00:58]} 35. Rh1 {[%clk 0:00:28]}  f4 {[%clk 0:00:57]} 36. Bc1 {[%clk 0:00:25]}  Kf5 {[%clk 0:00:54]} 37. Bb2 {[%clk 0:00:20]}  Bxb2 {[%clk 0:00:40]} 38. Kxb2 {[%clk 0:00:20]}  Rg8 {[%clk 0:00:40]} 39. Rh2 {[%clk 0:00:17]}  Bf1 {[%clk 0:00:39]} 40. Nc5 {[%clk 0:00:15]}  Rxg2 {[%clk 0:00:38]} 41. Rh6 {[%clk 0:00:12]}  Bb5 {[%clk 0:00:31]} 42. Kc1 {[%clk 0:00:10]}  f3 {[%clk 0:00:31]} 43. Rh3 {[%clk 0:00:06]}  f2 {[%clk 0:00:30]} 44. Rf3+ {[%clk 0:00:06]}  Kg4 {[%clk 0:00:31]} 45. Rf6 {[%clk 0:00:05]}  f1=Q+ {[%clk 0:00:30]} 46. Rxf1 {[%clk 0:00:04]}  Bxf1 {[%clk 0:00:31]} 47. c4 {[%clk 0:00:04]}  Ra2 {[%clk 0:00:28]} 48. Na4 {[%clk 0:00:04]}  Bxc4 {[%clk 0:00:27]} 0-1


[Site "https://www.chess.com"]

[Event "Titled Tuesday Blitz January 17 Early 2023"]
[White "Shipov, Sergei"]
[Black "Valle Maytin, Luis Enrique"]
[WhiteFideId "4113624"]
[BlackFideId "3503666"]
[WhiteElo "2541"]
[BlackElo "2241"]
[Result "0-1"]
[Round "01"]
[TimeControl "180+2"]
[Date "2023.01.17"]
[WhiteClock "0:00:01"]
[BlackClock "0:00:11"]

1. d4 {[%clk 0:02:59]}  Nf6 {[%clk 0:02:59]} 2. c4 {[%clk 0:02:58]}  e6 {[%clk 0:02:59]} 3. Nc3 {[%clk 0:02:58]}  Bb4 {[%clk 0:02:58]} 4. Qc2 {[%clk 0:02:58]}  d5 {[%clk 0:02:56]} 5. a3 {[%clk 0:02:57]}  Bxc3+ {[%clk 0:02:46]} 6. Qxc3 {[%clk 0:02:58]}  Ne4 {[%clk 0:02:46]} 7. Qc2 {[%clk 0:02:58]}  O-O {[%clk 0:02:44]} 8. Nf3 {[%clk 0:02:47]}  b6 {[%clk 0:02:29]} 9. cxd5 {[%clk 0:02:37]}  exd5 {[%clk 0:02:29]} 10. Bf4 {[%clk 0:02:37]}  c5 {[%clk 0:02:18]} 11. e3 {[%clk 0:02:36]}  Bf5 {[%clk 0:02:12]} 12. Qa4 {[%clk 0:02:25]}  Nd7 {[%clk 0:02:06]} 13. Be2 {[%clk 0:02:21]}  a6 {[%clk 0:01:48]} 14. O-O {[%clk 0:01:33]}  b5 {[%clk 0:01:45]} 15. Qd1 {[%clk 0:01:32]}  c4 {[%clk 0:01:45]} 16. Nd2 {[%clk 0:01:29]}  Nxd2 {[%clk 0:01:41]} 17. Qxd2 {[%clk 0:01:29]}  Re8 {[%clk 0:01:41]} 18. f3 {[%clk 0:01:24]}  Qb6 {[%clk 0:01:36]} 19. Bg3 {[%clk 0:01:15]}  Nf6 {[%clk 0:01:36]} 20. Rfe1 {[%clk 0:01:03]}  a5 {[%clk 0:01:35]} 21. Kh1 {[%clk 0:00:44]}  b4 {[%clk 0:01:34]} 22. Rec1 {[%clk 0:00:42]}  h6 {[%clk 0:01:05]} 23. Be1 {[%clk 0:00:16]}  c3 {[%clk 0:00:48]} 24. bxc3 {[%clk 0:00:15]}  b3 {[%clk 0:00:48]} 25. Rab1 {[%clk 0:00:14]}  Bxb1 {[%clk 0:00:46]} 26. Rxb1 {[%clk 0:00:14]}  a4 {[%clk 0:00:46]} 27. Bg3 {[%clk 0:00:10]}  Rac8 {[%clk 0:00:45]} 28. Bd3 {[%clk 0:00:10]}  Qa5 {[%clk 0:00:44]} 29. Rc1 {[%clk 0:00:10]}  Re6 {[%clk 0:00:38]} 30. Bf5 {[%clk 0:00:09]}  Rc4 {[%clk 0:00:30]} 31. Bxe6 {[%clk 0:00:08]}  fxe6 {[%clk 0:00:31]} 32. Bd6 {[%clk 0:00:08]}  Qb6 {[%clk 0:00:26]} 33. Bb4 {[%clk 0:00:08]}  Qc6 {[%clk 0:00:24]} 34. h3 {[%clk 0:00:08]}  Qc7 {[%clk 0:00:20]} 35. Re1 {[%clk 0:00:07]}  Qg3 {[%clk 0:00:20]} 36. Kg1 {[%clk 0:00:06]}  Nh7 {[%clk 0:00:19]} 37. e4 {[%clk 0:00:05]}  Ng5 {[%clk 0:00:19]} 38. Kf1 {[%clk 0:00:05]}  Qh2 {[%clk 0:00:17]} 39. exd5 {[%clk 0:00:04]}  Nxh3 {[%clk 0:00:11]} 40. dxe6 {[%clk 0:00:01]}  Qg1+ {[%clk 0:00:11]} 41. Ke2 {[%clk 0:00:01]}  Qxg2+ {[%clk 0:00:11]} 42. Kd1 {[%clk 0:00:01]}  Qxf3+ {[%clk 0:00:12]} 43. Kc1 {[%clk 0:00:01]}  Qf5 {[%clk 0:00:11]} 0-1


[Site "https://www.chess.com"]

[Event "Titled Tuesday Blitz January 17 Early 2023"]
[White "Kilic, Eray"]
[Black "Urbina Perez, Juan Antonio"]
[WhiteFideId "44517173"]
[BlackFideId "2217368"]
[WhiteElo "2414"]
[BlackElo "2266"]
[Result "1-0"]
[Round "01"]
[TimeControl "180+2"]
[Date "2023.01.17"]
[WhiteClock "0:01:39"]
[BlackClock "0:01:27"]

1. e4 {[%clk 0:03:00]}  c6 {[%clk 0:02:56]} 2. Nc3 {[%clk 0:03:00]}  d5 {[%clk 0:02:56]} 3. Nf3 {[%clk 0:03:01]}  dxe4 {[%clk 0:02:56]} 4. Nxe4 {[%clk 0:03:02]}  Nf6 {[%clk 0:02:56]} 5. Nxf6+ {[%clk 0:03:02]}  exf6 {[%clk 0:02:57]} 6. d4 {[%clk 0:03:03]}  Bd6 {[%clk 0:02:56]} 7. Bd3 {[%clk 0:03:04]}  O-O {[%clk 0:02:55]} 8. O-O {[%clk 0:03:05]}  Re8 {[%clk 0:02:52]} 9. h3 {[%clk 0:03:06]}  Qc7 {[%clk 0:02:51]} 10. Re1 {[%clk 0:03:05]}  Rxe1+ {[%clk 0:02:47]} 11. Qxe1 {[%clk 0:03:06]}  Nd7 {[%clk 0:02:46]} 12. c4 {[%clk 0:03:03]}  Nf8 {[%clk 0:02:44]} 13. Be3 {[%clk 0:03:01]}  Bd7 {[%clk 0:02:39]} 14. Rd1 {[%clk 0:02:59]}  Re8 {[%clk 0:02:39]} 15. Qf1 {[%clk 0:02:53]}  Bf4 {[%clk 0:02:37]} 16. Bxf4 {[%clk 0:02:45]}  Qxf4 {[%clk 0:02:38]} 17. Nh2 {[%clk 0:02:19]}  Kh8 {[%clk 0:02:23]} 18. Bb1 {[%clk 0:02:18]}  Bf5 {[%clk 0:02:17]} 19. g3 {[%clk 0:02:08]}  Qg5 {[%clk 0:02:06]} 20. Nf3 {[%clk 0:02:08]}  Qh5 {[%clk 0:01:46]} 21. g4 {[%clk 0:02:08]}  Bxg4 {[%clk 0:01:46]} 22. hxg4 {[%clk 0:02:09]}  Qxg4+ {[%clk 0:01:47]} 23. Qg2 {[%clk 0:02:10]}  Qh5 {[%clk 0:01:41]} 24. Qg3 {[%clk 0:02:00]}  Ne6 {[%clk 0:01:35]} 25. Kg2 {[%clk 0:01:57]}  h6 {[%clk 0:01:33]} 26. d5 {[%clk 0:01:40]}  cxd5 {[%clk 0:01:27]} 27. Rh1 {[%clk 0:01:39]} 1-0


[Site "https://www.chess.com"]

[Event "Titled Tuesday Blitz January 17 Early 2023"]
[White "Manukian, Artak"]
[Black "Pakleza, Zbigniew"]
[WhiteFideId "13301373"]
[BlackFideId "1119290"]
[WhiteElo "2196"]
[BlackElo "2494"]
[Result "1-0"]
[Round "01"]
[TimeControl "180+2"]
[Date "2023.01.17"]
[WhiteClock "0:00:12"]
[BlackClock "0:00:05"]

1. e4 {[%clk 0:02:57]}  d6 {[%clk 0:02:59]} 2. d4 {[%clk 0:02:56]}  Nf6 {[%clk 0:02:59]} 3. f3 {[%clk 0:02:56]}  Nbd7 {[%clk 0:02:57]} 4. c4 {[%clk 0:02:55]}  e5 {[%clk 0:02:58]} 5. d5 {[%clk 0:02:55]}  Be7 {[%clk 0:02:58]} 6. Bd3 {[%clk 0:02:55]}  O-O {[%clk 0:02:58]} 7. Ne2 {[%clk 0:02:53]}  Ne8 {[%clk 0:02:57]} 8. Nbc3 {[%clk 0:02:51]}  Bg5 {[%clk 0:02:57]} 9. O-O {[%clk 0:02:48]}  g6 {[%clk 0:02:56]} 10. g4 {[%clk 0:02:32]}  a5 {[%clk 0:02:49]} 11. Ng3 {[%clk 0:02:26]}  Nc5 {[%clk 0:02:44]} 12. Bc2 {[%clk 0:02:25]}  Ng7 {[%clk 0:02:40]} 13. Na4 {[%clk 0:02:25]}  Nxa4 {[%clk 0:02:29]} 14. Bxa4 {[%clk 0:02:25]}  f5 {[%clk 0:02:29]} 15. gxf5 {[%clk 0:02:24]}  gxf5 {[%clk 0:02:30]} 16. Kh1 {[%clk 0:01:42]}  Bxc1 {[%clk 0:02:12]} 17. Rxc1 {[%clk 0:01:22]}  Qh4 {[%clk 0:02:11]} 18. c5 {[%clk 0:01:13]}  Rf6 {[%clk 0:01:58]} 19. Qe1 {[%clk 0:01:06]}  Rh6 {[%clk 0:01:54]} 20. Qf2 {[%clk 0:01:06]}  b6 {[%clk 0:01:13]} 21. cxb6 {[%clk 0:01:00]}  cxb6 {[%clk 0:01:14]} 22. Rc7 {[%clk 0:00:57]}  Kh8 {[%clk 0:01:08]} 23. Rfc1 {[%clk 0:00:49]}  Ba6 {[%clk 0:01:03]} 24. Rxg7 {[%clk 0:00:40]}  f4 {[%clk 0:00:55]} 25. Rg4 {[%clk 0:00:36]}  fxg3 {[%clk 0:00:22]} 26. Rxh4 {[%clk 0:00:35]}  gxf2 {[%clk 0:00:23]} 27. Rxh6 {[%clk 0:00:36]}  Rg8 {[%clk 0:00:20]} 28. Rxd6 {[%clk 0:00:27]}  Be2 {[%clk 0:00:18]} 29. Rf6 {[%clk 0:00:22]}  Kg7 {[%clk 0:00:16]} 30. Rf5 {[%clk 0:00:22]}  Rc8 {[%clk 0:00:16]} 31. Bc6 {[%clk 0:00:19]}  f1=Q+ {[%clk 0:00:12]} 32. Rxf1 {[%clk 0:00:18]}  Bxf1 {[%clk 0:00:13]} 33. Rxe5 {[%clk 0:00:17]}  Bh3 {[%clk 0:00:13]} 34. Kg1 {[%clk 0:00:17]}  Kf6 {[%clk 0:00:13]} 35. Rh5 {[%clk 0:00:16]}  Rg8+ {[%clk 0:00:12]} 36. Kf2 {[%clk 0:00:16]}  Rg2+ {[%clk 0:00:12]} 37. Ke3 {[%clk 0:00:17]}  Rxh2 {[%clk 0:00:13]} 38. d6 {[%clk 0:00:16]}  Rc2 {[%clk 0:00:08]} 39. Rxh3 {[%clk 0:00:12]}  Rxc6 {[%clk 0:00:07]} 40. Rxh7 {[%clk 0:00:13]}  Rc2 {[%clk 0:00:05]} 41. d7 {[%clk 0:00:12]} 1-0


[Site "https://www.chess.com"]

[Event "Titled Tuesday Blitz January 17 Early 2023"]
[White "Heinemann, Josefine"]
[Black "Borges Feria, Yasel"]
[WhiteFideId "12900460"]
[BlackFideId "3504921"]
[WhiteElo "2289"]
[BlackElo "2439"]
[Result "1-0"]
[Round "01"]
[TimeControl "180+2"]
[Date "2023.01.17"]
[WhiteClock "0:01:33"]
[BlackClock "0:00:12"]

1. e4 {[%clk 0:02:53]}  c5 {[%clk 0:02:59]} 2. Nf3 {[%clk 0:02:51]}  d6 {[%clk 0:02:59]} 3. Bb5+ {[%clk 0:02:50]}  Nd7 {[%clk 0:02:58]} 4. O-O {[%clk 0:02:49]}  a6 {[%clk 0:02:58]} 5. Bd3 {[%clk 0:02:48]}  Ngf6 {[%clk 0:02:54]} 6. c3 {[%clk 0:02:43]}  e5 {[%clk 0:02:53]} 7. a4 {[%clk 0:02:42]}  Be7 {[%clk 0:02:54]} 8. Bc2 {[%clk 0:02:41]}  O-O {[%clk 0:02:53]} 9. a5 {[%clk 0:02:36]}  b5 {[%clk 0:02:28]} 10. axb6 {[%clk 0:02:33]}  Qxb6 {[%clk 0:02:29]} 11. Na3 {[%clk 0:02:32]}  Qc7 {[%clk 0:02:26]} 12. Nc4 {[%clk 0:02:31]}  Bb7 {[%clk 0:02:26]} 13. Re1 {[%clk 0:02:29]}  Rfe8 {[%clk 0:02:25]} 14. Na5 {[%clk 0:02:23]}  Bf8 {[%clk 0:02:19]} 15. Nxb7 {[%clk 0:02:21]}  Qxb7 {[%clk 0:02:20]} 16. d3 {[%clk 0:02:21]}  a5 {[%clk 0:02:14]} 17. Bb3 {[%clk 0:02:16]}  Reb8 {[%clk 0:02:04]} 18. Ba2 {[%clk 0:02:08]}  h6 {[%clk 0:02:04]} 19. Nh4 {[%clk 0:01:59]}  a4 {[%clk 0:01:51]} 20. Qf3 {[%clk 0:01:52]}  Qc7 {[%clk 0:01:06]} 21. Nf5 {[%clk 0:01:49]}  Qd8 {[%clk 0:00:21]} 22. Qg3 {[%clk 0:01:34]}  Nh5 {[%clk 0:00:13]} 23. Qg6 {[%clk 0:01:34]}  Ndf6 {[%clk 0:00:12]} 24. Nxh6+ {[%clk 0:01:33]}  Kh8 {[%clk 0:00:12]} 25. Nxf7+ {[%clk 0:01:33]} 1-0


[Site "https://www.chess.com"]

[Event "Titled Tuesday Blitz January 17 Early 2023"]
[White "Arjun, Kalyan"]
[Black "Gonzalez, Francisco Silva"]
[WhiteFideId "35018701"]
[BlackFideId "1512285"]
[WhiteElo "2516"]
[BlackElo "2021"]
[Result "1-0"]
[Round "01"]
[TimeControl "180+2"]
[Date "2023.01.17"]
[WhiteClock "0:01:46"]
[BlackClock "0:01:01"]

1. e4 {[%clk 0:02:59]}  e5 {[%clk 0:01:28]} 2. Nf3 {[%clk 0:02:57]}  Nc6 {[%clk 0:01:27]} 3. Bc4 {[%clk 0:02:58]}  Bc5 {[%clk 0:01:26]} 4. d3 {[%clk 0:02:57]}  Nf6 {[%clk 0:01:26]} 5. O-O {[%clk 0:02:57]}  d6 {[%clk 0:01:25]} 6. c3 {[%clk 0:02:57]}  a6 {[%clk 0:01:25]} 7. a4 {[%clk 0:02:55]}  Ba7 {[%clk 0:01:25]} 8. Re1 {[%clk 0:02:55]}  h6 {[%clk 0:01:25]} 9. Nbd2 {[%clk 0:02:54]}  g5 {[%clk 0:01:25]} 10. b4 {[%clk 0:02:46]}  g4 {[%clk 0:01:25]} 11. Nh4 {[%clk 0:02:46]}  Nxe4 {[%clk 0:01:25]} 12. Nxe4 {[%clk 0:02:41]}  Qxh4 {[%clk 0:01:25]} 13. d4 {[%clk 0:02:08]}  Kf8 {[%clk 0:01:24]} 14. b5 {[%clk 0:02:03]}  Na5 {[%clk 0:01:22]} 15. Ba2 {[%clk 0:02:02]}  exd4 {[%clk 0:01:22]} 16. cxd4 {[%clk 0:02:02]}  f5 {[%clk 0:01:21]} 17. Ng3 {[%clk 0:01:59]}  Qf6 {[%clk 0:01:18]} 18. Qe2 {[%clk 0:01:54]}  Bd7 {[%clk 0:01:14]} 19. Nh5 {[%clk 0:01:48]}  Qxd4 {[%clk 0:01:01]} 20. Qe7# {[%clk 0:01:46]} 1-0


[Site "https://www.chess.com"]

[Event "Titled Tuesday Blitz January 17 Early 2023"]
[White "Legenia, Artem"]
[Black "Concio, Michael Jr."]
[WhiteFideId "14136945"]
[BlackFideId "5217873"]
[WhiteElo "2092"]
[BlackElo "2395"]
[Result "0-1"]
[Round "01"]
[TimeControl "180+2"]
[Date "2023.01.17"]
[WhiteClock "0:00:18"]
[BlackClock "0:00:10"]

1. f4 {[%clk 0:02:42]}  d5 {[%clk 0:02:58]} 2. Nf3 {[%clk 0:02:41]}  c5 {[%clk 0:02:58]} 3. e3 {[%clk 0:02:42]}  Nc6 {[%clk 0:02:58]} 4. Bb5 {[%clk 0:02:42]}  Bg4 {[%clk 0:02:54]} 5. b3 {[%clk 0:02:38]}  Nf6 {[%clk 0:02:51]} 6. Bxc6+ {[%clk 0:02:38]}  bxc6 {[%clk 0:02:51]} 7. Bb2 {[%clk 0:02:39]}  e6 {[%clk 0:02:50]} 8. O-O {[%clk 0:02:39]}  Be7 {[%clk 0:02:47]} 9. d3 {[%clk 0:02:39]}  O-O {[%clk 0:02:47]} 10. Nbd2 {[%clk 0:02:39]}  Bh5 {[%clk 0:02:35]} 11. Qe2 {[%clk 0:02:39]}  Nd7 {[%clk 0:02:24]} 12. e4 {[%clk 0:02:35]}  Nb6 {[%clk 0:02:16]} 13. a4 {[%clk 0:02:35]}  a5 {[%clk 0:02:14]} 14. Qf2 {[%clk 0:02:30]}  f6 {[%clk 0:02:01]} 15. Rae1 {[%clk 0:02:28]}  Qd7 {[%clk 0:01:46]} 16. Ba3 {[%clk 0:02:28]}  d4 {[%clk 0:01:29]} 17. Rc1 {[%clk 0:02:08]}  Qc7 {[%clk 0:01:18]} 18. g3 {[%clk 0:02:05]}  e5 {[%clk 0:01:18]} 19. f5 {[%clk 0:01:59]}  Rfb8 {[%clk 0:00:36]} 20. h3 {[%clk 0:01:58]}  Bf7 {[%clk 0:00:34]} 21. g4 {[%clk 0:01:57]}  g5 {[%clk 0:00:28]} 22. fxg6 {[%clk 0:01:40]}  hxg6 {[%clk 0:00:29]} 23. Kg2 {[%clk 0:01:40]}  Kg7 {[%clk 0:00:29]} 24. h4 {[%clk 0:01:40]}  Rh8 {[%clk 0:00:29]} 25. Rh1 {[%clk 0:01:40]}  Qd7 {[%clk 0:00:19]} 26. Qg3 {[%clk 0:01:36]}  Qe6 {[%clk 0:00:19]} 27. h5 {[%clk 0:01:31]}  g5 {[%clk 0:00:17]} 28. h6+ {[%clk 0:01:19]}  Kh7 {[%clk 0:00:14]} 29. Nf1 {[%clk 0:01:17]}  Be8 {[%clk 0:00:14]} 30. Qh3 {[%clk 0:01:04]}  Bd7 {[%clk 0:00:14]} 31. N3h2 {[%clk 0:01:04]}  Nc8 {[%clk 0:00:10]} 32. Ng3 {[%clk 0:01:04]}  Bf8 {[%clk 0:00:09]} 33. Nf5 {[%clk 0:01:03]}  Ne7 {[%clk 0:00:10]} 34. Bxc5 {[%clk 0:00:59]}  Ng6 {[%clk 0:00:10]} 35. Rhf1 {[%clk 0:00:29]}  Bxc5 {[%clk 0:00:10]} 36. Kh1 {[%clk 0:00:27]}  Nf4 {[%clk 0:00:10]} 37. Qg3 {[%clk 0:00:25]}  Qf7 {[%clk 0:00:10]} 38. Rf2 {[%clk 0:00:22]}  Bxf5 {[%clk 0:00:10]} 39. exf5 {[%clk 0:00:20]}  Kxh6 {[%clk 0:00:10]} 40. Kg1 {[%clk 0:00:20]}  Kg7 {[%clk 0:00:10]} 41. Kf1 {[%clk 0:00:19]}  Rh3 {[%clk 0:00:10]} 42. Qg1 {[%clk 0:00:18]}  Rah8 {[%clk 0:00:10]} 43. Nf3 {[%clk 0:00:18]}  Rh1 {[%clk 0:00:10]} 0-1


[Site "https://www.chess.com"]

[Event "Titled Tuesday Blitz January 17 Early 2023"]
[White "Riehle, Marco"]
[Black "Kostenko, Petr"]
[WhiteFideId "12904392"]
[BlackFideId "13700669"]
[WhiteElo "2368"]
[BlackElo "2371"]
[Result "1-0"]
[Round "01"]
[TimeControl "180+2"]
[Date "2023.01.17"]
[WhiteClock "0:00:32"]
[BlackClock "0:00:11"]

1. e4 {[%clk 0:03:00]}  c6 {[%clk 0:02:33]} 2. c4 {[%clk 0:02:55]}  d5 {[%clk 0:02:33]} 3. cxd5 {[%clk 0:02:56]}  cxd5 {[%clk 0:02:33]} 4. exd5 {[%clk 0:02:57]}  Nf6 {[%clk 0:02:33]} 5. Nc3 {[%clk 0:02:58]}  Nxd5 {[%clk 0:02:33]} 6. Nf3 {[%clk 0:02:57]}  e6 {[%clk 0:02:33]} 7. d4 {[%clk 0:02:56]}  Bb4 {[%clk 0:02:32]} 8. Bd2 {[%clk 0:02:56]}  Nc6 {[%clk 0:02:32]} 9. Bd3 {[%clk 0:02:55]}  Nce7 {[%clk 0:02:30]} 10. O-O {[%clk 0:02:54]}  Bd7 {[%clk 0:02:26]} 11. Ne5 {[%clk 0:02:51]}  Bc6 {[%clk 0:02:12]} 12. Rc1 {[%clk 0:02:39]}  Nf6 {[%clk 0:01:55]} 13. Be3 {[%clk 0:02:31]}  O-O {[%clk 0:01:53]} 14. Nxc6 {[%clk 0:02:25]}  Nxc6 {[%clk 0:01:52]} 15. Ne4 {[%clk 0:02:26]}  Be7 {[%clk 0:01:50]} 16. Bb1 {[%clk 0:02:21]}  Rc8 {[%clk 0:01:44]} 17. h3 {[%clk 0:02:14]}  Qd5 {[%clk 0:01:39]} 18. Nxf6+ {[%clk 0:02:06]}  Bxf6 {[%clk 0:01:39]} 19. Qa4 {[%clk 0:01:57]}  a6 {[%clk 0:01:20]} 20. Rfd1 {[%clk 0:01:52]}  Rfd8 {[%clk 0:01:17]} 21. Rc5 {[%clk 0:01:49]}  Qd6 {[%clk 0:01:17]} 22. d5 {[%clk 0:01:35]}  exd5 {[%clk 0:01:05]} 23. Rcxd5 {[%clk 0:01:35]}  Qxd5 {[%clk 0:01:03]} 24. Bxh7+ {[%clk 0:01:30]}  Kh8 {[%clk 0:01:00]} 25. Rxd5 {[%clk 0:01:30]}  Rxd5 {[%clk 0:00:59]} 26. Be4 {[%clk 0:01:29]}  Re5 {[%clk 0:00:56]} 27. Bf3 {[%clk 0:01:22]}  Kg8 {[%clk 0:00:55]} 28. Qb3 {[%clk 0:01:20]}  Rb5 {[%clk 0:00:55]} 29. Qc4 {[%clk 0:01:16]}  Rxb2 {[%clk 0:00:50]} 30. Bd5 {[%clk 0:01:15]}  Ne7 {[%clk 0:00:26]} 31. Qg4 {[%clk 0:00:56]}  Rd8 {[%clk 0:00:20]} 32. Bb3 {[%clk 0:00:53]}  a5 {[%clk 0:00:20]} 33. h4 {[%clk 0:00:49]}  b5 {[%clk 0:00:18]} 34. Bb6 {[%clk 0:00:46]}  Rdd2 {[%clk 0:00:18]} 35. Qh5 {[%clk 0:00:38]}  g6 {[%clk 0:00:15]} 36. Qf3 {[%clk 0:00:38]}  Kg7 {[%clk 0:00:15]} 37. Bc5 {[%clk 0:00:38]}  Nf5 {[%clk 0:00:14]} 38. h5 {[%clk 0:00:38]}  Nh4 {[%clk 0:00:14]} 39. h6+ {[%clk 0:00:36]}  Kxh6 {[%clk 0:00:13]} 40. Qxf6 {[%clk 0:00:36]}  Nf5 {[%clk 0:00:13]} 41. g4 {[%clk 0:00:33]}  Rxf2 {[%clk 0:00:11]} 42. Bxf2 {[%clk 0:00:32]} 1-0


[Site "https://www.chess.com"]